Workbook

Sheet 01.03.2021г-06.03.2021г Школам
A1: Согласовано | L1: Утверждаю
A2: Директор ООО " Эталон+" | C2: он" | K2: Директор МБОУ СОШ№
A3: Подин В.А
B5: Недельное меню для обучающихся в общеобразовательных организациях
A6: 1 день 1 неделя Осень - зима
A7: 1-4классы
A8: Рецептура | B8: Наименование блюд | D8: Выход,г | E8: Белки,г | F8: Жиры,г | G8: Углеводы,г | H8: Калорийность,ккал | I8: Вит.В1,мг | J8: Вит.С,мг | K8: Вит.А,мг | L8: Вит.Е,мг | M8: Са,мг | N8: Р,мг | O8: Mg,мг | P8: Fe,мг
A9: ДеЛи,2012-584с,№62 | B9: Салат из моркови сахаром | D9: 60 | E9: 0.516 | F9: 2.132 | G9: 4.450 | H9: 50 | I9: 0.029 | J9: 13.430 | K9: 0.000 | L9: 0.234 | M9: 23.302 | N9: 10.850 | O9: 2.468 | P9: 0.158
A10: Дели 2015 №266 | B10: Бифштекс рубленый | D10: 80 | E10: 8.320 | F10: 7.150 | G10: 0.000 | H10: 200 | I10: 0.040 | J10: 0.000 | K10: 0.000 | L10: 1.343 | M10: 11.010 | N10: 127.020 | O10: 6.000 | P10: 1.100
A11: 303 сбор рецептур Дели 2015 | B11: Каша вязкая (гречневая) | D11: 150 | E11: 6.662 | F11: 9.024 | G11: 34.000 | H11: 170 | I11: 0.292 | J11: 0.000 | K11: 0.000 | L11: 0.518 | M11: 37.352 | N11: 170.553 | O11: 44.550 | P11: 1.101
A12: ДеЛи,2015-544с,№378 | B12: Чай с молоком | D12: 150/50/15 | E12: 1.520 | F12: 1.350 | G12: 15.900 | H12: 81 | I12: 0.040 | J12: 1.330 | K12: 0.160 | L12: 0.000 | M12: 136.600 | N12: 92.800 | O12: 5.400 | P12: 0.110
B13: Хлеб ржанл- пшенич.,1с | D13: 20 | E13: 1.000 | F13: 0.200 | G13: 9.000 | H13: 44 | I13: 0.014 | J13: 0.000 | K13: 0.000 | L13: 0.108 | M13: 2.760 | N13: 12.720 | O13: 3.000 | P13: 0.372
B14: Хлеб белый,1с | D14: 30 | E14: 2.280 | F14: 0.240 | G14: 14.760 | H14: 71 | I14: 0.033 | L14: 0.330 | M14: 6.000 | N14: 19.500 | O14: 4.200 | P14: 0.330
E15: =SUM(E9:E14) -> 20.298 | F15: 20.096 | G15: 78.110 | H15: 616 | I15: 0.448 | J15: 14.760 | K15: 0.160 | L15: 2.533 | M15: 217.024 | N15: 433.443 | O15: 65.618 | P15: 3.171
A16: 5-11классы
A17: 303 Сбор. Рец дели 2015 | B17: Каша вязкая (гречневая) | D17: 180 | E17: 7.99 | F17: 10.82 | G17: 40.80 | H17: 203.99 | I17: 0.35 | J17: 0.00 | K17: 0.00 | L17: 0.62 | M17: 44.82 | N17: 204.66 | O17: 53.46 | P17: 1.32
A18: Дели 2015 "266 | B18: Бифштекс рубленый | D18: 90 | E18: 9.360 | F18: 15.910 | G18: 0.000 | H18: 225 | I18: 0.045 | J18: 0.000 | K18: 0.000 | L18: 1.510 | M18: 12.380 | N18: 142.890 | O18: 6.750 | P18: 1.480
A19: Дели 2015 378 | B19: Чай с молоком | D19: 150/50/15 | E19: 1.52 | F19: 1.35 | G19: 15.90 | H19: 81.00 | I19: 0.04 | J19: 1.33 | K19: 0.16 | L19: 0.00 | M19: 136.00 | N19: 92.80 | O19: 5.40 | P19: 0.10
B20: Хлеб ржан- пшен | D20: 40 | E20: 2.000 | F20: 0.400 | G20: 18.000 | H20: 88 | I20: 0.028 | J20: 0.000 | K20: 0.000 | L20: 0.216 | M20: 5.520 | N20: 25.440 | O20: 6.000 | P20: 0.744
B21: Хлеб белый,1с | D21: 30 | E21: 2.280 | F21: 0.240 | G21: 14.760 | H21: 71 | I21: 0.033 | J21: 0.000 | K21: 0.000 | L21: 0.330 | M21: 6.000 | N21: 19.500 | O21: 4.2 | P21: 0.330
E22: =SUM(E17:E21) -> 23.150 | F22: 28.720 | G22: 89.460 | H22: 669 | I22: 0.496 | J22: 1.330 | K22: 0.160 | L22: 2.676 | M22: 204.720 | N22: 485.290 | O22: 75.81 | P22: 3.975
A23: ГПД:
A24: УФА 2021Сборние тех карт 63 | B24: Суп картофельный с макаронными изделиями | D24: 250 | E24: 6.6 | F24: 5.4 | G24: 24.2 | H24: 179 | I24: 0.12 | J24: 15.02 | K24: 0 | L24: 0 | M24: 15.02 | O24: 22.85 | P24: 0.96
B25: Хлеб ржан - пшен | D25: 20 | E25: 1 | F25: 0.2 | G25: 9 | H25: 44 | I25: 0.014 | J25: 0 | K25: 0 | L25: 0.108 | M25: 2.76 | N25: 12.72 | O25: 3 | P25: 0.372
B26: Хлеб белый , 1с | D26: 30 | E26: 2.28 | F26: 0.24 | G26: 14.76 | H26: 71 | I26: 0.033 | J26: 0 | K26: 0 | L26: 0.33 | M26: 6 | N26: 19.5 | O26: 4.2 | P26: 0.33
A27: ДеЛи,2015-544с,№378 | B27: Чай с молоком | D27: 150/50/15 | E27: 1.520 | F27: 1.350 | G27: 15.900 | H27: 81 | I27: 0.040 | J27: 1.330 | K27: 0.160 | L27: 0.000 | M27: 136.600 | N27: 92.800 | O27: 5.400 | P27: 0.110
E28: =SUM(E24:E27) -> 11.400 | F28: 7.190 | G28: 63.860 | H28: 375.00 | I28: 0.207 | J28: 16.350 | K28: 0.160 | L28: 0.438 | M28: 160.380 | N28: 125.020 | O28: 35.450 | P28: 1.772
A29: 2 день 1 неделя
A30: 1-4классы
A31: ДеЛи,2015-544с,№45 | B31: Салат из белокочанной капусты | D31: 60 | E31: 0.900 | F31: 3.000 | G31: 5.100 | H31: 51.9 | I31: 0.000 | J31: 8.500 | K31: 0.000 | L31: 1.300 | M31: 20.800 | N31: 6.900 | O31: 13.300 | P31: 0.500
A32: ДеЛи,2015№289 | B32: Рагу из птицы | D32: 50/150 | E32: 12.300 | F32: 17.660 | G32: 29.850 | H32: 313 | I32: 0.201 | J32: 8.076 | K32: 0.180 | L32: 2.100 | M32: 57.660 | N32: 201.911 | O32: 26.394 | P32: 0.111
A33: ДеЛи,2015-544с,№382 | B33: Какао с молоком | D33: 200 | E33: 3.780 | F33: 0.670 | G33: 26.000 | H33: 125 | I33: 0.020 | J33: 1.330 | K33: 0.000 | L33: 0.012 | M33: 133.330 | N33: 111.110 | O33: 25.560 | P33: 2.000
B34: Хлеб ржан - пшен,1с | D34: 20 | E34: 1.000 | F34: 0.200 | G34: 9.000 | H34: 44 | I34: 0.014 | J34: 0.000 | K34: 0.000 | L34: 0.108 | M34: 2.760 | N34: 12.720 | O34: 3.000 | P34: 0.372
B35: Хлеб белый,1с | D35: 30 | E35: 2.280 | F35: 0.240 | G35: 14.760 | H35: 71 | I35: 0.033 | L35: 0.330 | M35: 6.000 | N35: 19.500 | O35: 4.200 | P35: 0.330
E36: =SUM(E31:E35) -> 20.260 | F36: 21.770 | G36: 84.710 | H36: 605 | I36: 0.268 | J36: 17.906 | K36: 0.180 | L36: 3.850 | M36: 220.550 | N36: 352.141 | O36: 72.454 | P36: 3.313
A37: 5-11классы
A38: ДеЛи,2051-544с,№45 | B38: Салат из белокочанной капусты | D38: 100 | E38: 1.500 | F38: 0.075 | G38: 8.500 | H38: 86.5 | I38: 0.000 | J38: 14.160 | K38: 0.000 | L38: 2.160 | M38: 34.600 | N38: 11.500 | O38: 22.160 | P38: 0.830
A39: ДеЛи,2015№289 | B39: Рагу из птицы | D39: 50/150 | E39: 12.300 | F39: 17.660 | G39: 29.850 | H39: 313 | I39: 0.201 | J39: 8.076 | K39: 0.180 | L39: 2.100 | M39: 57.660 | N39: 201.911 | O39: 26.394 | P39: 0.110
A40: ДеЛи,2011-544с,№376 | B40: Чай с сахаром | D40: 200/15 | E40: 0.530 | F40: 0.000 | G40: 9.470 | H40: 40 | I40: 0.000 | J40: 0.270 | K40: 0.000 | L40: 0.000 | M40: 13.600 | N40: 22.130 | O40: 11.730 | P40: 0.100
B41: Хлеб ржан - пшен,1с | D41: 20 | E41: 1.000 | F41: 0.200 | G41: 9.000 | H41: 44 | I41: 0.014 | J41: 0.000 | K41: 0.000 | L41: 0.108 | M41: 2.760 | N41: 12.720 | O41: 3.000 | P41: 0.372
B42: Хлеб белый,1с | D42: 30 | E42: 2.280 | F42: 0.240 | G42: 14.760 | H42: 71 | I42: 0.033 | J42: 0.000 | K42: 0.000 | L42: 0.330 | M42: 6.000 | N42: 19.500 | O42: 4.200 | P42: 0.330
E43: 17.610 | F43: 18.175 | G43: 71.580 | H43: 555 | I43: =SUM(I39:I42) -> 0.248 | J43: 22.500 | K43: 0.180 | L43: 4.690 | M43: 114.620 | N43: 267.760 | O43: 67.480 | P43: 1.742
A44: ГПД:
A45: 58УФА 2021Сборние тех карт | B45: Борщ с капустой и картофелем | D45: 250/10 | E45: 2.000 | F45: 5.400 | G45: 12.800 | H45: 111 | I45: 0.050 | J45: 7.950 | K45: 0.000 | L45: 0.000 | M45: 40.710 | N45: 0.000 | O45: 22.900 | P45: 1.080
A46: ДеЛи,2011-544с,№349 | B46: Чай с сахаром | D46: 200/15 | E46: 0.530 | F46: 0.000 | G46: 9.470 | H46: 40 | I46: 0.000 | J46: 0.270 | K46: 0.000 | L46: 0.000 | M46: 13.600 | N46: 22.130 | O46: 11.730 | P46: 0.110
B47: Хлеб белый 1с | D47: 30 | E47: 2.280 | F47: 0.240 | G47: 14.760 | H47: 71 | I47: 0.033 | J47: 0.000 | K47: 0.000 | L47: 0.330 | M47: 6.000 | N47: 19.500 | O47: 4.200 | P47: 0.330
B48: Хлеб ржан-пшен,1с | D48: 20 | E48: 1.000 | F48: 0.200 | G48: 9.000 | H48: 44 | I48: 0.014 | J48: 0.000 | K48: 0.000 | L48: 0.108 | M48: 2.760 | N48: 12.720 | O48: 3.000 | P48: 0.372
E49: =SUM(E45:E48) -> 5.810 | F49: 5.840 | G49: 46.030 | H49: 266 | I49: 0.097 | J49: 8.220 | K49: 0.000 | L49: 0.438 | M49: 63.070 | N49: 54.350 | O49: 41.830 | P49: 1.892
A50: 3 день 1 неделя
A51: 1-4классы
A52: ДеЛи,2015-584с,№52 | B52: Салат из свеклы отварной | D52: 60 | E52: 0.855 | F52: 3.653 | G52: 11.580 | H52: 56 | I52: 0.011 | J52: 7.700 | K52: 0.000 | L52: 0.641 | M52: 121.090 | N52: 84.582 | O52: 12.540 | P52: 0.198
A53: ДеЛи,2015-544с,№203.1 | B53: Макаронные изделия отварные с маслом | D53: 150/5 | E53: 5.100 | F53: 4.468 | G53: 28.500 | H53: 187 | I53: 0.067 | J53: 0.000 | K53: 0.100 | L53: 0.816 | M53: 16.456 | N53: 57.009 | O53: 8.479 | P53: 0.869
A54: ДеЛи,2015-544с,№256.1 | B54: Мясо тушеное | D54: 50/50 | E54: 10.500 | F54: 11.030 | G54: 3.184 | H54: 196 | I54: 0.140 | J54: 3.890 | K54: 0.000 | L54: 0.363 | M54: 66.806 | N54: 215.174 | O54: 30.164 | P54: 1.430
A55: ДеЛи,2015-544с,№377 | B55: Чай с сахаром и лимоном | D55: 200/15/7 | E55: 0.084 | F55: 0.012 | G55: 15.185 | H55: 62 | I55: 0.003 | J55: 2.800 | K55: 0.000 | L55: 0.014 | M55: 3.250 | N55: 1.540 | O55: 0.840 | P55: 0.087
B56: Хлеб ржан- пшен,1с | D56: 20 | E56: 1.000 | F56: 0.200 | G56: 9.000 | H56: 44 | I56: 0.014 | J56: 0.000 | K56: 0.000 | L56: 0.108 | M56: 2.760 | N56: 12.720 | O56: 3.000 | P56: 0.372
B57: Хлеб белый,1с | D57: 30 | E57: 2.280 | F57: 0.240 | G57: 14.760 | H57: 71 | I57: 0.033 | L57: 0.330 | M57: 6.000 | N57: 19.500 | O57: 4.200 | P57: 0.330
E58: =SUM(E52:E57) -> 19.819 | F58: 19.603 | G58: 82.209 | H58: 616 | I58: 0.268 | J58: 14.390 | K58: 0.100 | L58: 2.272 | M58: 216.362 | N58: 390.525 | O58: 59.223 | P58: 3.286
A59: 5-11классы
A60: ДеЛи,2015-544с,№203.1 | B60: Макаронные изделия отварные с маслом | D60: 180/5 | E60: 6.120 | F60: 5.360 | G60: 34.200 | H60: 224 | I60: 0.080 | J60: 0.000 | K60: 0.119 | L60: 0.979 | M60: 19.740 | N60: 68.410 | O60: 10.170 | P60: 1.042
A61: ДеЛи,2015-544с,№243 | B61: Сосиски | D61: 100 | E61: 7.400 | F61: 10.900 | G61: 0.800 | H61: 108 | I61: 0.030 | J61: 0.000 | K61: 0.000 | L61: 1.000 | M61: 35.000 | N61: 139.001 | O61: 16.000 | P61: 0.000
A62: Дели 2015 376 | B62: Чай с сахаром | D62: 200/15 | E62: 0.530 | F62: 0.000 | G62: 9.470 | H62: 40 | I62: 0.000 | J62: 0.270 | K62: 0.000 | L62: 0.000 | M62: 13.600 | N62: 22.130 | O62: 11.730 | P62: 0.110
B63: Хлеб ржано- пшени | D63: 20 | E63: 1.000 | F63: 0.200 | G63: 9.000 | H63: 44 | I63: 0.014 | J63: 0.000 | K63: 0.000 | L63: 0.108 | M63: 2.760 | N63: 12.720 | O63: 3.000 | P63: 0.372
B64: Хлеб белый,1с | D64: 30 | E64: 2.280 | F64: 0.240 | G64: 14.760 | H64: 71 | I64: 0.033 | L64: 0.330 | M64: 6.000 | N64: 19.500 | O64: 4.200 | P64: 0.330
E65: 17.330 | F65: 16.700 | G65: 68.230 | H65: 487 | I65: =SUM(I60:I64) -> 0.157 | J65: 0.270 | K65: =SUM(K60:K64) -> 0.119 | L65: 2.417 | M65: 77.100 | N65: 261.760 | O65: 45.100 | P65: 1.854
A66: ГПД:
A67: 194Уфа 2021Сборние тех карт | B67: Каша ячневая молочная с маслом | D67: 250/10 | E67: 8.700 | F67: 10.000 | G67: 44.700 | H67: 313 | I67: 0.160 | J67: 0.610 | K67: 0.000 | L67: 0.000 | M67: 179.710 | N67: 0.000 | O67: 41.240 | P67: 1.090
A68: Дели 2015 376 | B68: Чай с молоком | D68: 150/50/15 | E68: 1.520 | F68: 1.350 | G68: 15.900 | H68: 81 | I68: 0.040 | J68: 1.330 | K68: 0.160 | L68: 0.000 | M68: 136.600 | N68: 92.800 | O68: 5.400 | P68: 0.110
B69: Хлеб белый , 1 с | D69: 30 | E69: 2.280 | F69: 0.240 | G69: 14.760 | H69: 71 | I69: 0.033 | L69: 0.330 | M69: 6.000 | N69: 19.500 | O69: 4.200 | P69: 0.330
B70: Хлеб ржано- пшенич,1с | D70: 20 | E70: 1.000 | F70: 0.200 | G70: 9.000 | H70: 44 | I70: 0.014 | J70: 0.000 | K70: 0.000 | L70: 0.108 | M70: 2.760 | N70: 12.720 | O70: 3.000 | P70: 0.372
E71: =SUM(E67:E70) -> 13.500 | F71: 11.790 | G71: 84.360 | H71: 509 | I71: 0.247 | J71: 1.940 | K71: 0.160 | L71: 0.438 | M71: 325.070 | N71: 125.020 | O71: 53.840 | P71: 1.902
A72: 4 день 1 неделя
A73: 1-4классы
A74: 56 Дели 2-015 | B74: Салат овощной с яблоками | D74: 60 | E74: 3.500 | F74: 6.110 | G74: 9.900 | H74: 124 | I74: 0.010 | J74: 11.310 | L74: 0.400 | M74: 126.880 | N74: 120.410 | O74: 41.330 | P74: 1.900
A75: ДеЛи,2015-544с,№312 | B75: Картофельное пюре | D75: 150 | E75: 3.090 | F75: 6.282 | G75: 22.000 | H75: 172 | I75: 0.164 | J75: 7.943 | K75: 0.080 | L75: 3.000 | M75: 47.805 | N75: 98.835 | O75: 8.000 | P75: 0.000
A76: Дели 2015 №234 | B76: Котлета рыбная | D76: 80 | E76: 6.450 | F76: 4.250 | G76: 7.490 | H76: 116 | I76: 0.050 | J76: 0.480 | K76: 0.100 | L76: 0.646 | M76: 44.020 | N76: 137.060 | O76: 12.000 | P76: 0.000
A77: ДеЛи,2015-544с,№376 | B77: Чай с сахаром | D77: 200/15 | E77: 0.530 | F77: 0.000 | G77: 9.470 | H77: 40 | I77: 0.000 | J77: 0.270 | K77: 0.000 | L77: 0.000 | M77: 13.600 | N77: 22.130 | O77: 11.730 | P77: 0.100
B78: Хлеб ржано - пшенич,1с | D78: 20 | E78: 1.000 | F78: 0.200 | G78: 9.000 | H78: 44 | I78: 0.014 | J78: 0.000 | K78: 0.000 | L78: 0.108 | M78: 2.760 | N78: 12.720 | O78: 3.000 | P78: 0.372
B79: Хлеб белый,1с | D79: 30 | E79: 2.280 | F79: 0.240 | G79: 14.760 | H79: 71 | I79: 0.033 | L79: 0.330 | M79: 6.000 | N79: 19.500 | O79: 4.200 | P79: 0.330
E80: =SUM(E74:E79) -> 16.850 | F80: 17.082 | G80: 72.620 | H80: 567 | I80: 0.271 | J80: 20.003 | K80: 0.180 | L80: 4.484 | M80: 241.065 | N80: 410.655 | O80: 80.260 | P80: 2.702
A81: 5-11классы
A82: ДеЛи,2015-544с,№312 | B82: Картофельное пюре | D82: 180 | E82: 3.708 | F82: 7.530 | G82: 26.390 | H82: 206 | I82: 0.196 | J82: 9.530 | K82: 0.095 | L82: 3.600 | M82: 57.360 | N82: 118.590 | O82: 9.590 | P82: 0.000
A83: Дели 2015 № 234 | B83: Котлета рыбная | D83: 80 | E83: 6.450 | F83: 4.250 | G83: 7.490 | H83: 116 | I83: 0.050 | J83: 0.480 | K83: 0.100 | L83: 0.646 | M83: 44.020 | N83: 137.060 | O83: 12.000 | P83: 0.330
A84: №376,2015 Дели г | B84: Чай с сахаром | D84: 200/15 | E84: 0.530 | F84: 0.000 | G84: 9.470 | H84: 40 | I84: 0.000 | J84: 0.270 | K84: 0.000 | L84: 0.000 | M84: 13.600 | N84: 22.130 | O84: 11.730 | P84: 0.100
B85: Хлеб ржано - пшенич,1с | D85: 20 | E85: 1.000 | F85: 0.200 | G85: 9.000 | H85: 44 | I85: 0.014 | J85: 0.000 | K85: 0.000 | L85: 0.108 | M85: 2.760 | N85: 12.720 | O85: 3.000 | P85: 0.372
B86: Хлеб белый,1с | D86: 60 | E86: 4.560 | F86: 0.480 | G86: 29.520 | H86: 142 | I86: 0.066 | J86: 0.000 | K86: 0.000 | L86: 0.660 | M86: 12.000 | N86: 39.000 | O86: 8.400 | P86: 0.660
E87: =SUM(E82:E86) -> 16.248 | F87: 12.460 | G87: 81.870 | H87: 548 | I87: 0.326 | J87: 10.280 | K87: 0.195 | L87: 5.014 | M87: 129.740 | N87: 329.500 | O87: 44.720 | P87: 1.462
A88: ГПД:
A89: Уфа 2021 190 | B89: Каша рисовая молочная вязкая | D89: 250 | E89: 5.50 | F89: 16.90 | G89: 81.60 | H89: 504.00 | I89: 0.05 | J89: 0.00 | K89: 0.00 | L89: 0.00 | M89: 8.12 | N89: 0.00 | O89: 33.25 | P89: 0.75
A90: №376,2015 Дели гМосквва | B90: Чай с сахаром | D90: 200/15 | E90: 0.530 | F90: 0.000 | G90: 9.470 | H90: 40 | I90: 0.000 | J90: 0.270 | K90: 0.000 | L90: 0.000 | M90: 13.600 | N90: 22.130 | O90: 11.730 | P90: 0.100
B91: Хлеб ржано - пшенич | D91: 20 | E91: 1.000 | F91: 0.200 | G91: 9.000 | H91: 44 | I91: 0.014 | J91: 0.000 | K91: 0.000 | L91: 0.108 | M91: 2.760 | N91: 12.720 | O91: 3.00 | P91: 0.372
B92: Хлеб белый,1с | D92: 30 | E92: 2.280 | F92: 0.240 | G92: 14.760 | H92: 71 | I92: 0.033 | L92: 0.330 | M92: 6.000 | N92: 19.500 | O92: 4.200 | P92: 0.330
E93: =SUM(E88:E92) -> 9.310 | F93: 17.340 | G93: 114.830 | H93: 659 | I93: 0.097 | J93: 0.270 | K93: 0.000 | L93: 0.438 | M93: 30.480 | N93: 54.350 | O93: 49.180 | P93: 1.552
A94: 5 день 1 неделя
A95: 1-4классы
A96: ДеЛи,2015-544с,№59 | B96: Салат из моркови с яблоками | D96: 60 | E96: 0.660 | F96: 0.120 | G96: 2.280 | H96: 14 | I96: 0.036 | J96: 10.000 | K96: 0.000 | L96: 0.420 | M96: 8.400 | N96: 15.600 | O96: 12.000 | P96: 0.340
A97: Дели 2015 сбор 304 | B97: Рис отварной | D97: 150 | E97: 3.834 | F97: 5.434 | G97: 29.600 | H97: 210 | I97: 0.044 | J97: 0.000 | K97: 0.180 | L97: 0.264 | M97: 11.460 | N97: 84.150 | O97: 13.330 | P97: 0.010
A98: Дели 2015 № 268 | B98: Котлеты гов | D98: 80 | E98: 9.660 | F98: 12.412 | G98: 9.450 | H98: 182 | I98: 0.166 | J98: 3.861 | K98: 0.000 | L98: 1.364 | M98: 54.970 | N98: 155.026 | O98: 21.930 | P98: 1.678
A99: Дели 2015 378 | B99: Чай с молоком | D99: 150/50/15 | E99: 1.520 | F99: 1.350 | G99: 15.900 | H99: 81 | I99: 0.040 | J99: 1.330 | K99: 0.160 | L99: 0.000 | M99: 136.600 | N99: 92.800 | O99: 5.400 | P99: 0.110
B100: Хлеб ржано - пшеничный,1с | D100: 20 | E100: 1.000 | F100: 0.200 | G100: 9.000 | H100: 44 | I100: 0.014 | J100: 0.000 | K100: 0.000 | L100: 0.108 | M100: 2.760 | N100: 12.720 | O100: 3.000 | P100: 0.372
B101: Хлеб белый,1с | D101: 30 | E101: 2.280 | F101: 0.240 | G101: 14.760 | H101: 71 | I101: 0.033 | J101: 0.000 | K101: 0.000 | L101: 0.330 | M101: 6.000 | N101: 19.500 | O101: 4.200 | P101: 0.330
E102: =SUM(E96:E101) -> 18.954 | F102: 19.756 | G102: 80.990 | H102: 602 | I102: 0.333 | J102: 15.191 | K102: 0.340 | L102: 2.486 | M102: 220.190 | N102: 379.796 | O102: 59.860 | P102: 2.840
A103: 5-11классы
A104: ДеЛи,2015-,№304 | B104: Рис отварной | D104: 180 | E104: 4.600 | F104: 6.520 | G104: 35.510 | H104: 252 | I104: 0.052 | J104: 0.000 | K104: 0.216 | L104: 0.316 | M104: 13.750 | N104: 100.980 | O104: 15.990 | P104: 0.011
A105: Дели 2015 № 268 | B105: Котлета гов | D105: 90 | E105: 10.860 | F105: 13.960 | G105: 10.630 | H105: 205 | I105: 0.186 | J105: 4.340 | K105: 0.000 | L105: 1.530 | M105: 61.840 | N105: 174.400 | O105: 24.670 | P105: 1.880
A106: ДеЛи,2015-,№378 | B106: Чай с молоком | D106: 150/50/15 | E106: 1.520 | F106: 1.350 | G106: 15.900 | H106: 81 | I106: 0.040 | J106: 1.330 | K106: 0.160 | L106: 0.000 | M106: 136.600 | N106: 92.800 | O106: 5.400 | P106: 0.110
B107: Хлеб белый , 1с | D107: 30 | E107: 2.280 | F107: 0.240 | G107: 14.760 | H107: 71 | I107: 0.330 | J107: 0.000 | K107: 0.000 | L107: 0.330 | M107: 6.000 | N107: 19.500 | O107: 4.200 | P107: 0.330
B108: Хлеб ржано - пшеничный,1с | D108: 40 | E108: 2.000 | F108: 0.400 | G108: 18.000 | H108: 88 | I108: 0.028 | J108: 0.000 | K108: 0.000 | L108: 0.216 | M108: 5.520 | N108: 25.440 | O108: 6.000 | P108: 0.744
E109: =SUM(E104:E108) -> 21.260 | F109: 22.470 | G109: 94.800 | H109: 697 | I109: 0.636 | J109: 5.670 | K109: 0.376 | L109: 2.392 | M109: 223.710 | N109: 413.120 | O109: 56.260 | P109: 3.075
A110: ГПД:
A111: Уфа 2021 65 | B111: Суп картофельный с бобовыми и гренками | D111: 300/25 | E111: 9.000 | F111: 5.400 | G111: 38.900 | H111: 253 | I111: 0.240 | J111: 5.590 | K111: 0.000 | L111: 0.000 | M111: 46.410 | N111: 0.000 | O111: 52.310 | P111: 2.770
B112: Хлеб ржано- пшеничный | D112: 20 | E112: 1.000 | F112: 0.200 | G112: 9.000 | H112: 44 | I112: 0.014 | J112: 0.000 | K112: 0.000 | L112: 0.108 | M112: 2.760 | N112: 12.720 | O112: 3.000 | P112: 0.372
A113: ДеЛи,2015-544с,№378 | B113: Чай с молоком | D113: 150/50/15 | E113: 1.520 | F113: 1.350 | G113: 15.900 | H113: 81 | I113: 0.040 | J113: 1.330 | K113: 0.160 | L113: 0.000 | M113: 136.600 | N113: 92.800 | O113: 5.400 | P113: 0.110
B114: Хлеб белый,1с | D114: 30 | E114: 2.280 | F114: 0.240 | G114: 14.760 | H114: 71 | I114: 0.033 | L114: 0.330 | M114: 6.000 | N114: 19.500 | O114: 4.200 | P114: 0.330
E115: =SUM(E111:E114) -> 13.800 | F115: 7.190 | G115: 78.560 | H115: 449 | I115: 0.327 | J115: 6.920 | K115: 0.160 | L115: 0.438 | M115: 191.770 | N115: 125.020 | O115: 64.910 | P115: 3.582
A116: 6 день 1 неделя
A117: 1-4классы
A118: Дели 2015№ 338 | B118: Плоды и ягоды свежие ( яблоки) | D118: 100 | E118: 0.400 | F118: 0.400 | G118: 7.350 | H118: 47 | I118: 0.030 | J118: 8.000 | K118: 0.000 | L118: 0.100 | M118: 16.000 | N118: 11.000 | O118: 9.000 | P118: 0.030
A119: Уфа 2021 №21 | B119: Салат Витаминный | D119: 60 | E119: 0.900 | F119: 2.700 | G119: 6.500 | H119: 56 | I119: 0.020 | J119: 3.800 | K119: 0.000 | L119: 0.000 | M119: 20.840 | N119: 0.000 | O119: 11.000 | P119: 0.540
A120: Дели2015 №392 | B120: Пельмени отварные | D120: 180/5 | E120: 10.340 | F120: 12.175 | G120: 20.340 | H120: 237 | I120: 0.159 | J120: 0.491 | K120: 0.180 | L120: 1.283 | M120: 79.453 | N120: 239.018 | O120: 10.570 | P120: 0.010
A121: Дели 2015 №379 | B121: Кофейный напиток с молоком | D121: 200 | E121: 3.600 | F121: 2.670 | G121: 29.200 | H121: 156 | I121: 0.030 | J121: 1.470 | K121: 0.000 | L121: 0.000 | M121: 158.670 | N121: 132.000 | O121: 29.330 | P121: 2.400
B122: Хлеб ржано- пшеничный ,1с | D122: 20 | E122: 1.000 | F122: 0.200 | G122: 9.000 | H122: 44 | I122: 0.014 | J122: 0.000 | K122: 0.000 | L122: 0.108 | M122: 2.760 | N122: 12.720 | O122: 3.000 | P122: 0.372
B123: Хлеб белый,1с | D123: 30 | E123: 2.280 | F123: 0.240 | G123: 14.760 | H123: 71 | I123: 0.033 | L123: 0.330 | M123: 6.000 | N123: 19.500 | O123: 4.200 | P123: 0.330
E124: =SUM(E118:E123) -> 18.520 | F124: 18.385 | G124: 87.150 | H124: 611 | I124: 0.286 | J124: 13.761 | K124: 0.180 | L124: 1.821 | M124: 283.723 | N124: 414.238 | O124: 67.100 | P124: 3.682
A125: 5-11классы
A126: №392 Дели 2015 | B126: Пельмени отварные | D126: 180/5 | E126: 10.34 | F126: 12.18 | G126: 20.34 | H126: 237.00 | I126: 0.16 | J126: 0.49 | K126: 0.18 | L126: 1.28 | M126: 79.45 | N126: 239.02 | O126: 10.57 | P126: 0.01
B127: Хлеб ржано - пшеничный ,1с | D127: 20 | E127: 1.00 | F127: 0.20 | G127: 9.00 | H127: 44.00 | I127: 0.01 | J127: 0.00 | K127: 0.00 | L127: 0.11 | M127: 2.76 | N127: 12.72 | O127: 3.00 | P127: 0.37
B128: Хлеб белый , 1 с | D128: 60 | E128: 4.56 | F128: 0.48 | G128: 29.52 | H128: 142.00 | I128: 0.06 | J128: 0.00 | K128: 0.00 | L128: 0.22 | M128: 5.52 | N128: 25.44 | O128: 6.00 | P128: 0.74
A129: Дели 2015 № 379 | B129: Кофейный напиток с молоком | D129: 200 | E129: 3.600 | F129: 2.670 | G129: 29.200 | H129: 156 | I129: 0.030 | J129: 1.470 | K129: 0.000 | L129: 0.000 | M129: 158.670 | N129: 7.500 | O129: 6.500 | P129: 0.197
E130: 19.500 | F130: 15.530 | G130: 88.060 | H130: =SUM(H126:H129) -> 579 | I130: 0.260 | J130: 1.961 | K130: 0.180 | L130: 1.610 | M130: 246.400 | N130: 284.680 | O130: 26.070 | P130: 1.320

Sheet 01.03.2021г-06.03.2021г
A1: Согласовано | M1: Утверждаю
A2: Директор ООО " Эталон +" | M2: Директор МБОУ СОШ№
A3: Подин В.А
B5: Недельное меню для обучающихся в общеобразовательных организациях
A6: 2 неделя 1 день Осень- зима
A7: 1-4классы
A8: Рецептура | B8: Наименование блюд | D8: Выход,г | E8: Цена | F8: Белки,г | G8: Жиры,г | H8: Углеводы,г | I8: Калорийность,ккал | J8: Вит.В1,мг | K8: Вит.С,мг | L8: Вит.А,мг | M8: Вит.Е,мг | N8: Са,мг | O8: Р,мг | P8: Mg,мг | Q8: Fe,мг
A9: ДеЛи,2015,№338 | B9: плоды и ягоды свежие ( яблоки) | D9: 100 | E9: 0.40 | F9: 0.400 | G9: 0.400 | H9: 7.350 | I9: 47 | J9: 0.030 | K9: 8.000 | L9: 0.000 | M9: 0.200 | N9: 46.000 | O9: 11.000 | P9: 0.100 | Q9: 0.000
A10: Дели 2015 №45 | B10: Салат из белокачанной капусты | D10: 60 | E10: 23.75 | F10: 0.780 | G10: 1.940 | H10: 3.870 | I10: 36 | J10: 0.013 | K10: 6.250 | L10: 0.000 | M10: 0.060 | N10: 16.980 | O10: 46.980 | P10: 6.050 | Q10: 0.270
A11: Дели 2015 №243 | B11: Сосиски отварные | D11: 100 | F11: 7.400 | G11: 10.900 | H11: 0.800 | I11: 108 | J11: 0.030 | K11: 0.000 | L11: 0.000 | M11: 1.000 | N11: 35.000 | O11: 139.001 | P11: 16.000 | Q11: 0.000
A12: Дели 2015 №171 | B12: Каша гречневая рассыпчатая с маслом | D12: 150/5 | E12: 10.42 | F12: 6.682 | G12: 9.024 | H12: 34.000 | I12: 170 | J12: 0.000 | K12: 0.000 | L12: 0.000 | M12: 0.518 | N12: 44.820 | O12: 170.553 | P12: 40.550 | Q12: 1.010
A13: ДеЛи,2011-544с,№376 | B13: Чай с сахаром | D13: 200/15 | E13: 1.89 | F13: 0.530 | G13: 0.000 | H13: 9.470 | I13: 40 | J13: 0.000 | K13: 0.270 | L13: 0.000 | M13: 0.000 | N13: 13.600 | O13: 22.130 | P13: 11.730 | Q13: 0.100
B14: Хлеб ржан - пшеничный ,1с | D14: 20 | E14: 1.37 | F14: 1.000 | G14: 0.200 | H14: 9.000 | I14: 44 | J14: 0.014 | K14: 0.000 | L14: 0.000 | M14: 0.108 | N14: 2.760 | O14: 12.720 | P14: 3.000 | Q14: 0.372
B15: Хлеб белый,1с | D15: 30 | E15: 1.41 | F15: 2.280 | G15: 0.240 | H15: 14.760 | I15: 71 | J15: 0.033 | M15: 0.330 | N15: 6.000 | O15: 19.500 | P15: 4.200 | Q15: 0.330
A16: Итого: | E16: =SUM(E9:E15) -> 39.24 | F16: 19.072 | G16: 22.704 | H16: 79.250 | I16: 516 | J16: 0.120 | K16: 14.520 | L16: 0.000 | M16: 2.216 | N16: 165.160 | O16: 421.884 | P16: 81.630 | Q16: 2.082
A17: 5-11классы
A18: дели 2015 №171 | B18: Каша гречневая рассыпчатая с маслом | D18: 180/5 | E18: 12.21 | F18: 8.01 | G18: 10.82 | H18: 40.79 | I18: 203.90 | J18: 0.00 | K18: 0.00 | L18: 0.00 | M18: 0.62 | N18: 81.30 | O18: 204.66 | P18: 48.65 | Q18: 1.21
A19: Дели 2015№234 | B19: Котлеты рыбные | D19: 80 | E19: 17.59 | F19: 6.450 | G19: 4.240 | H19: 7.490 | I19: 116 | J19: 0.050 | K19: 0.480 | L19: 0.100 | M19: 0.646 | N19: 44.020 | O19: 137.060 | P19: 12.000 | Q19: 0.000
B20: Хлеб ржан -пшеничный , 1 с | D20: 40 | E20: 4.12 | F20: 2.00 | G20: 0.40 | H20: 18.00 | I20: 88.00 | J20: 0.02 | K20: 0.00 | L20: 0.00 | M20: 0.22 | N20: 5.52 | O20: 25.44 | P20: 6.00 | Q20: 0.74
A21: ДеЛи,2011-544с,№376 | B21: Чай с сахаром | D21: 200/15 | E21: 1.89 | F21: 0.530 | G21: 0.000 | H21: 9.470 | I21: 40 | J21: 0.000 | K21: 0.270 | L21: 0.000 | M21: 0.000 | N21: 13.600 | O21: 22.130 | P21: 11.730 | Q21: 0.100
B22: Хлеб белый,1с | D22: 30 | E22: 1.41 | F22: 2.280 | G22: 0.240 | H22: 14.760 | I22: 71 | J22: 0.033 | K22: 0.000 | L22: 0.000 | M22: 0.330 | N22: 6.000 | O22: 19.500 | P22: 4.2 | Q22: 0.330
A23: Итого: | E23: =SUM(E18:E22) -> 37.22 | F23: 19.270 | G23: 15.700 | H23: 90.510 | I23: 519 | J23: 0.103 | K23: 0.750 | L23: 0.100 | M23: 1.816 | N23: 150.440 | O23: 408.790 | P23: 82.58 | Q23: 1.640
A24: ГПД:
A25: Уфа 2021 №61 | B25: Суп картофельный с макаронными изделиями | D25: 250 | E25: 4.32 | F25: 6.6 | G25: 5.4 | H25: 24.2 | I25: 179 | J25: 0.12 | K25: 15.02 | L25: 0 | M25: 0 | N25: 15.02 | O25: 0 | P25: 22.85 | Q25: 0.96
B26: Хлеб пшеничный , 1 сорт | D26: 30 | F26: 2.28 | G26: 0.24 | H26: 14.76 | I26: 71 | J26: 0.033 | K26: 0 | L26: 0 | M26: 0.33 | N26: 6 | O26: 19.5 | P26: 4.2 | Q26: 0.33
B27: Хлеб ржан - пше , 1 с | D27: 20 | F27: 1 | G27: 0.2 | H27: 9 | I27: 44 | J27: 0.01 | K27: 0 | L27: 0 | M27: 0.11 | N27: 2.76 | O27: 12.72 | P27: 3 | Q27: 0.37
A28: ДеЛи,2011-544с,№376 | B28: Чай с сахаром | D28: 200/15 | E28: 1.89 | F28: 0.530 | G28: 0.000 | H28: 9.470 | I28: 40 | J28: 0.000 | K28: 0.270 | L28: 0.000 | M28: 0.000 | N28: 13.600 | O28: 22.130 | P28: 11.730 | Q28: 0.100
A29: Итого: | E29: =SUM(E25:E28) -> 6.21 | F29: 10.410 | G29: 5.840 | H29: 57.430 | I29: 334.00 | J29: 0.163 | K29: 15.290 | L29: 0.000 | M29: 0.440 | N29: 37.380 | O29: 54.350 | P29: 41.780 | Q29: 1.760
A30: 2 день 2 неделя
A31: 1-4классы
A32: ДеЛи,2015,№52 | B32: Салат из свеклы отварной | D32: 60 | E32: 3.07 | F32: 0.855 | G32: 3.653 | H32: 11.580 | I32: 56.0 | J32: 0.011 | K32: 7.700 | L32: 0.000 | M32: 0.641 | N32: 121.090 | O32: 64.582 | P32: 12.540 | Q32: 0.198
A33: Дели 2015 №291 | B33: Плов из птицы | D33: 50/150 | E33: 7.20 | F33: 14.510 | G33: 14.710 | H33: 28.340 | I33: 364 | J33: 0.210 | K33: 4.900 | L33: 0.100 | M33: 1.200 | N33: 83.070 | O33: 273.000 | P33: 40.450 | Q33: 1.900
A34: Дели 2015 №377 | B34: Чай с лимоном | D34: 200/15/7 | E34: 1.89 | F34: 0.084 | G34: 0.012 | H34: 15.185 | I34: 62 | J34: 0.003 | K34: 2.800 | L34: 0.000 | M34: 0.014 | N34: 3.250 | O34: 1.540 | P34: 0.840 | Q34: 0.067
B35: Хлеб ржан - пшен,1с | D35: 20 | E35: 1.37 | F35: 1.000 | G35: 0.200 | H35: 9.000 | I35: 44 | J35: 0.014 | K35: 0.000 | L35: 0.000 | M35: 0.108 | N35: 2.760 | O35: 12.720 | P35: 3.000 | Q35: 0.372
B36: Хлеб белый,1с | D36: 30 | E36: 1.41 | F36: 2.280 | G36: 0.240 | H36: 14.760 | I36: 71 | J36: 0.033 | M36: 0.330 | N36: 6.000 | O36: 19.500 | P36: 4.200 | Q36: 0.330
A37: Итого: | E37: =SUM(E32:E36) -> 14.94 | F37: 18.729 | G37: 18.815 | H37: 78.865 | I37: 597 | J37: 0.271 | K37: 15.400 | L37: 0.100 | M37: 2.293 | N37: 216.170 | O37: 371.342 | P37: 61.030 | Q37: 2.867
A38: 5-11классы
A39: Дели 2015 №52 | B39: Салат из свеклы отварной | D39: 100 | E39: 3.07 | F39: 1.425 | G39: 6.080 | H39: 19.300 | I39: 93.3 | J39: 0.027 | K39: 12.830 | L39: 0.000 | M39: 1.068 | N39: 201.810 | O39: 107.630 | P39: 20.900 | Q39: 0.330
A40: Дели 2015 № 291 | B40: Плов из птицы | D40: 50/150 | E40: 7.20 | F40: 14.510 | G40: 14.710 | H40: 28.340 | I40: 364 | J40: 0.210 | K40: 4.900 | L40: 0.100 | M40: 1.200 | N40: 83.070 | O40: 273.000 | P40: 40.450 | Q40: 1.900
A41: ДеЛи,2011-544с,№376 | B41: Чай с сахаром | D41: 200/15 | E41: 1.89 | F41: 0.530 | G41: 0.000 | H41: 9.470 | I41: 40 | J41: 0.000 | K41: 0.270 | L41: 0.000 | M41: 0.000 | N41: 13.600 | O41: 22.130 | P41: 11.730 | Q41: 0.100
B42: Хлеб ржан - пшен,1с | D42: 20 | E42: 1.37 | F42: 1.000 | G42: 0.200 | H42: 9.000 | I42: 44 | J42: 0.014 | K42: 0.000 | L42: 0.000 | M42: 0.108 | N42: 2.760 | O42: 12.720 | P42: 3.000 | Q42: 0.372
B43: Хлеб белый,1с | D43: 30 | E43: 1.41 | F43: 2.280 | G43: 0.240 | H43: 14.760 | I43: 71 | J43: 0.033 | K43: 0.000 | L43: 0.000 | M43: 0.330 | N43: 6.000 | O43: 19.500 | P43: 4.200 | Q43: 0.330
A44: Итого: | E44: =SUM(E40:E43) -> 11.87 | F44: 19.740 | G44: 21.230 | H44: 80.870 | I44: 612.3 | J44: 0.284 | K44: 18.000 | L44: =SUM(L40:L43) -> 0.100 | M44: 2.706 | N44: 224.170 | O44: 434.980 | P44: 80.280 | Q44: 3.032
A45: ГПД:
A46: Уфа 2021 №65 | B46: Суп картофельный с бобовыми и гренками | D46: 300/25 | E46: 8.22 | F46: 9.000 | G46: 5.400 | H46: 38.900 | I46: 253 | J46: 0.240 | K46: 5.590 | L46: 0.000 | M46: 0.000 | N46: 46.610 | O46: 0.000 | P46: 52.310 | Q46: 2.770
A47: Дели 2015 №377 | B47: Чай с лимоном | D47: 200/15/7 | F47: 0.084 | G47: 0.012 | H47: 15.185 | I47: 62 | J47: 0.003 | K47: 2.800 | L47: 0.000 | M47: 0.014 | N47: 3.250 | O47: 1.540 | P47: 0.840 | Q47: 0.067
A48: ДеЛи,2011-544с,№349 | B48: Хлеб белый , 1 с | D48: 30 | E48: 3.65 | F48: 2.280 | G48: 0.240 | H48: 14.760 | I48: 71 | J48: 0.033 | K48: 0.000 | L48: 0.000 | M48: 0.330 | N48: 6.000 | O48: 19.500 | P48: 4.200 | Q48: 0.330
B49: Хлеб ржан - пшен,1с | D49: 20 | E49: 1.37 | F49: 1.000 | G49: 0.200 | H49: 9.000 | I49: 44 | J49: 0.014 | K49: 0.000 | L49: 0.000 | M49: 0.108 | N49: 2.760 | O49: 12.720 | P49: 3.000 | Q49: 0.372
A50: Итого: | E50: =SUM(E46:E49) -> 13.24 | F50: 12.364 | G50: 5.852 | H50: 77.845 | I50: 430 | J50: 0.290 | K50: 8.390 | L50: 0.000 | M50: 0.452 | N50: 58.620 | O50: 33.760 | P50: 60.350 | Q50: 3.539
A51: 3 день 2 неделя
A52: 1-4классы
A53: уфа 2021 №21 | B53: Салат Витаминный | D53: 60 | E53: 2.12 | F53: 0.900 | G53: 2.700 | H53: 6.500 | I53: 56 | J53: 0.020 | K53: 3.800 | L53: 0.000 | M53: 0.000 | N53: 20.840 | O53: 0.000 | P53: 11.000 | Q53: 0.540
A54: Дели 2015 № 312 | B54: Пюре картофельное | D54: 150 | E54: 5.32 | F54: 3.090 | G54: 8.282 | H54: 22.000 | I54: 172 | J54: 0.164 | K54: 7.943 | L54: 0.080 | M54: 0.231 | N54: 47.805 | O54: 98.835 | P54: 8.000 | Q54: 0.000
A55: Дели 2015 №234 | B55: Котлеты рыбные | D55: 80 | E55: 38.83 | F55: 6.450 | G55: 4.240 | H55: 7.490 | I55: 116 | J55: 0.050 | K55: 0.480 | L55: 0.100 | M55: 0.646 | N55: 44.020 | O55: 137.060 | P55: 12.000 | Q55: 0.000
A56: Дели 2015№ 379 | B56: Кофейный напиток с молоком | D56: 200 | E56: 2.87 | F56: 3.600 | G56: 2.670 | H56: 29.200 | I56: 155 | J56: 0.030 | K56: 1.470 | L56: 0.000 | M56: 0.000 | N56: 158.670 | O56: 132.000 | P56: 29.330 | Q56: 2.400
B57: Хлеб ржан - пшенс | D57: 20 | E57: 1.37 | F57: 1.000 | G57: 0.200 | H57: 9.000 | I57: 44 | J57: 0.014 | K57: 0.000 | L57: 0.000 | M57: 0.108 | N57: 2.760 | O57: 12.720 | P57: 3.000 | Q57: 0.372
B58: Хлеб белый,1с | D58: 30 | E58: 1.41 | F58: 2.280 | G58: 0.240 | H58: 14.760 | I58: 71 | J58: 0.033 | M58: 0.330 | N58: 6.000 | O58: 19.500 | P58: 4.200 | Q58: 0.330
A59: Итого: | E59: =SUM(E53:E58) -> 51.92 | F59: 17.320 | G59: 18.332 | H59: 88.950 | I59: 614 | J59: 0.311 | K59: 13.693 | L59: 0.180 | M59: 1.315 | N59: 280.095 | O59: 400.115 | P59: 67.530 | Q59: 3.642
A60: 5-11классы
A61: Уфа 2021 №21 | B61: Салат Витаминный | D61: 100 | E61: 2.12 | F61: 1.500 | G61: 4.500 | H61: 10.800 | I61: 93 | J61: 0.020 | K61: 6.340 | L61: 0.000 | M61: 0.000 | N61: 34.740 | O61: 0.000 | P61: 18.330 | Q61: 0.910
A62: Дели 2015 № 312 | B62: Пюре картофельное | D62: 180 | E62: 5.32 | F62: 3.708 | G62: 7.530 | H62: 26.390 | I62: 206 | J62: 0.196 | K62: 9.530 | L62: 0.095 | M62: 3.600 | N62: 57.360 | O62: 118.590 | P62: 9.590 | Q62: 0.000
A63: Дели 2015 №234 | B63: Котлеты рыбные | D63: 80 | E63: 23.75 | F63: 6.450 | G63: 4.250 | H63: 7.490 | I63: 116 | J63: 0.050 | K63: 0.480 | L63: 0.100 | M63: 0.646 | N63: 44.020 | O63: 137.060 | P63: 12.000 | Q63: 0.000
B64: Хлеб ржано-пшен , 1 с | D64: 20 | E64: 4.32 | F64: 1 | G64: 0.2 | H64: 9 | I64: 44 | J64: 0.014 | K64: 0 | L64: 0 | M64: 0.108 | N64: 2.76 | O64: 12.72 | P64: 3 | Q64: 0.372
A65: ДеЛи,2011-544с,№376 | B65: Чай с сахаром | D65: 200/15 | E65: 1.89 | F65: 0.530 | G65: 0.000 | H65: 0.470 | I65: 40 | J65: 0.000 | K65: 0.270 | L65: 0.000 | M65: 0.000 | N65: 13.600 | O65: 22.130 | P65: 11.730 | Q65: 0.100
B66: Хлеб белый,1с | D66: 30 | E66: 1.41 | F66: 2.280 | G66: 0.240 | H66: 14.760 | I66: 71 | J66: 0.033 | M66: 0.330 | N66: 6.000 | O66: 19.500 | P66: 4.200 | Q66: 0.330
A67: Итого: | E67: =SUM(E62:E66) -> 36.69 | F67: 13.968 | G67: 12.220 | H67: 58.110 | I67: 477 | J67: 0.293 | K67: 10.280 | L67: 0.195 | M67: 4.684 | N67: 123.740 | O67: 310.000 | P67: 40.520 | Q67: 0.802
A68: ГПД:
A69: Уфа 2021 №191 | B69: Каша рисовая молочная | D69: 250/10 | E69: 6.37 | F69: 7.200 | G69: 9.900 | H69: 48.900 | I69: 319 | J69: 0.050 | K69: 0.260 | L69: 0.000 | M69: 0.000 | N69: 144.750 | O69: 0.000 | P69: 40.680 | Q69: 0.670
A70: Дели 2015 №379 | B70: Кофейный напиток с молоком | D70: 200 | E70: 4.32 | F70: 3.6 | G70: 2.67 | H70: 29.2 | I70: 155 | J70: 0.03 | K70: 1.47 | L70: 0 | M70: 0 | N70: 158.67 | O70: 132 | P70: 29.33 | Q70: 2.4
B71: Хлеб белый , 1 с | D71: 30 | E71: 2.28 | F71: 2.280 | G71: 0.240 | H71: 14.760 | I71: 71 | J71: 0.033 | K71: 0.000 | L71: 0.000 | M71: 0.108 | N71: 2.760 | O71: 12.720 | P71: 3.000 | Q71: 0.372
B72: Хлеб ржан - пшен,1с | D72: 20 | E72: 1.37 | F72: 1.000 | G72: 0.200 | H72: 9.000 | I72: 44 | J72: 0.014 | K72: 0.000 | L72: 0.000 | M72: 0.108 | N72: 2.760 | O72: 12.720 | P72: 3.000 | Q72: 0.372
A73: Итого: | E73: =SUM(E69:E72) -> 14.34 | F73: 14.080 | G73: 13.010 | H73: 101.860 | I73: 589 | J73: 0.127 | K73: 1.730 | L73: 0.000 | M73: 0.216 | N73: 308.940 | O73: 157.440 | P73: 76.010 | Q73: 3.814
A74: 4 день 2 неделя
A75: 1-4классы
A76: Дели 2015 №62 | B76: Салат из моркови с сахаром | D76: 60 | E76: 4.06 | F76: 0.516 | G76: 2.132 | H76: 4.450 | I76: 50 | J76: 0.029 | K76: 13.430 | L76: 0.000 | M76: 0.234 | N76: 23.302 | O76: 10.850 | P76: 2.468 | Q76: 0.158
A77: Дели 2015 №243 | B77: Сосиски отварные | D77: 100 | E77: 12.06 | F77: 7.400 | G77: 10.900 | H77: 0.800 | I77: 108 | J77: 0.030 | K77: 0.000 | L77: 0.000 | M77: 1.000 | N77: 35.000 | O77: 139.001 | P77: 16.000 | Q77: 0.000
A78: Дели 2015 №203 | B78: Макаронные изделия отварные с маслом | D78: 150/5 | E78: 32.62 | F78: 5.100 | G78: 4.680 | H78: 28.500 | I78: 187 | J78: 0.067 | K78: 0.000 | L78: 0.100 | M78: 0.816 | N78: 16.457 | O78: 57.009 | P78: 8.479 | Q78: 0.869
A79: Дели 2015 № 382 | B79: Какао с молоком | D79: 200 | E79: 1.89 | F79: 3.780 | G79: 0.670 | H79: 26.000 | I79: 125 | J79: 0.020 | K79: 1.330 | L79: 0.000 | M79: 0.012 | N79: 133.330 | O79: 111.110 | P79: 25.560 | Q79: 2.000
B80: Хлеб ржан- пшен,1с | D80: 20 | E80: 1.37 | F80: 1.000 | G80: 0.200 | H80: 9.000 | I80: 44 | J80: 0.014 | K80: 0.000 | L80: 0.000 | M80: 0.108 | N80: 2.760 | O80: 12.720 | P80: 3.000 | Q80: 0.372
B81: Хлеб белый,1с | D81: 30 | E81: 1.41 | F81: 2.280 | G81: 0.240 | H81: 14.760 | I81: 71 | J81: 0.033 | M81: 0.330 | N81: 6.000 | O81: 19.500 | P81: 4.200 | Q81: 0.330
A82: Итого: | E82: =SUM(E76:E81) -> 53.41 | F82: 20.076 | G82: 18.822 | H82: 83.510 | I82: 585 | J82: 0.193 | K82: 14.760 | L82: 0.100 | M82: 2.500 | N82: 216.849 | O82: 350.190 | P82: 59.707 | Q82: 3.729
A83: 5-11классы
A84: Уфа 2021№21 | B84: Каша молочная "Дружда" | D84: 250/10 | E84: 12.06 | F84: 7.900 | G84: 10.800 | H84: 41.900 | I84: 300 | J84: 0.011 | K84: 0.480 | L84: 0.000 | M84: 0.000 | N84: 159.300 | O84: 0.000 | P84: 46.370 | Q84: 1.000
A85: Уфа 2021№1.4 | B85: Сыр ( порц) | D85: 15 | E85: 32.62 | F85: 3.950 | G85: 4.000 | H85: 0.000 | I85: 63 | J85: 0.005 | K85: 0.105 | L85: 0.000 | M85: 0.000 | N85: 150.000 | O85: 0.000 | P85: 8.250 | Q85: 0.105
A86: Дели 2015 №382 | B86: Какао с молоком | D86: 200 | E86: 3.65 | F86: 3.780 | G86: 0.670 | H86: 26.000 | I86: 125 | J86: 0.020 | K86: 1.330 | L86: 0.000 | M86: 0.012 | N86: 133.330 | O86: 111.110 | P86: 25.565 | Q86: 2.000
B87: Хлеб ржан- пшен,1с | D87: 40 | E87: 1.37 | F87: 2.000 | G87: 0.4 | H87: 18.000 | I87: 88 | J87: 0.028 | K87: 0.000 | L87: 0.000 | M87: 0.160 | N87: 12.720 | O87: 25.440 | P87: 6.000 | Q87: 0.744
B88: Хлеб белый,1с | D88: 30 | E88: 1.41 | F88: 2.280 | G88: 0.240 | H88: 14.760 | I88: 71 | J88: 0.033 | M88: 0.330 | N88: 6.000 | O88: 19.500 | P88: 4.200 | Q88: 0.330
A89: Итого: | E89: =SUM(E84:E88) -> 51.11 | F89: 19.910 | G89: 15.710 | H89: 100.660 | I89: 647 | J89: 0.097 | K89: 1.915 | L89: 0.000 | M89: 0.502 | N89: 461.350 | O89: 156.050 | P89: 90.385 | Q89: 4.179
A90: ГПД:
A91: Уфа 2021 № 192 | B91: Каша овсяная " Геркулес " молочная с маслом | D91: 250/10 | E91: 9.67 | F91: 10.00 | G91: 12.70 | H91: 42.80 | I91: 332.00 | J91: 0.21 | K91: 0.26 | L91: 0.00 | M91: 0.00 | N91: 167.12 | O91: 0.00 | P91: 80.22 | Q91: 2.08
B92: Хлеб ржан- пшен , 1с | D92: 20 | F92: 1.00 | G92: 0.20 | H92: 9.00 | I92: 44.00 | J92: 0.01 | K92: 0.00 | L92: 0.00 | M92: 0.11 | N92: 2.76 | O92: 12.78 | P92: 3.00 | Q92: 0.37
A93: №686,2004 | B93: Чай с сахаром | D93: 200/15 | E93: 2.87 | F93: 0.530 | G93: 0.000 | H93: 9.470 | I93: 40 | J93: 0.000 | K93: 0.270 | L93: 0.000 | M93: 0.000 | N93: 13.600 | O93: 22.130 | P93: 11.730 | Q93: 0.100
B94: Хлеб белый,1с | D94: 30 | E94: 1.41 | F94: 2.280 | G94: 0.240 | H94: 14.760 | I94: 71 | J94: 0.033 | M94: 0.330 | N94: 6.000 | O94: 19.500 | P94: 4.200 | Q94: 0.330
A95: Итого: | E95: =SUM(E90:E94) -> 13.95 | F95: 13.810 | G95: 13.140 | H95: 76.030 | I95: 487 | J95: 0.257 | K95: 0.530 | L95: 0.000 | M95: 0.438 | N95: 189.480 | O95: 54.412 | P95: 99.150 | Q95: 2.882
A96: 5 день 2 неделя
A97: 1-4классы
A98: Дели 2015 №59 | B98: Салат из моркови с яблоками | D98: 60 | E98: 40.51 | F98: 0.660 | G98: 0.120 | H98: 2.280 | I98: 14 | J98: 0.036 | K98: 10.000 | L98: 0.000 | M98: 0.420 | N98: 8.400 | O98: 15.600 | P98: 12.000 | Q98: 0.340
A99: Дели 2015 №304 | B99: Рис отварной | D99: 150 | F99: 3.834 | G99: 5.434 | H99: 29.600 | I99: 210 | J99: 0.044 | K99: 0.000 | L99: 0.180 | M99: 0.284 | N99: 11.460 | O99: 84.150 | P99: 13.330 | Q99: 0.010
A100: Дели 2015 №268 | B100: Котлеты гов | D100: 80 | E100: 7.26 | F100: 9.660 | G100: 12.412 | H100: 9.450 | I100: 182 | J100: 0.166 | K100: 3.861 | L100: 0.000 | M100: 1.364 | N100: 54.970 | O100: 155.026 | P100: 21.930 | Q100: 1.678
A101: Дели 2015 №378 | B101: Чай с молоком | D101: 150/50/15 | F101: 1.520 | G101: 1.350 | H101: 15.900 | I101: 81 | J101: 0.040 | K101: 1.330 | L101: 0.160 | M101: 0.000 | N101: 136.600 | O101: 92.800 | P101: 5.400 | Q101: 0.110
B102: Хлеб ржан . пшен.,1с | D102: 20 | E102: 1.37 | F102: 1.000 | G102: 0.200 | H102: 9.000 | I102: 44 | J102: 0.014 | K102: 0.000 | L102: 0.000 | M102: 0.108 | N102: 2.760 | O102: 12.720 | P102: 3.000 | Q102: 0.372
B103: Хлеб белый,1с | D103: 30 | E103: 1.41 | F103: 2.280 | G103: 0.240 | H103: 14.760 | I103: 71 | J103: 0.033 | K103: 0.000 | L103: 0.000 | M103: 0.330 | N103: 6.000 | O103: 19.500 | P103: 4.200 | Q103: 0.330
A104: Итого: | E104: =SUM(E98:E103) -> 50.55 | F104: 18.954 | G104: 19.756 | H104: 80.990 | I104: 602 | J104: 0.333 | K104: 15.191 | L104: 0.340 | M104: 2.506 | N104: 220.190 | O104: 379.796 | P104: 59.860 | Q104: 2.840
A105: 5-11классы
A106: Дели 2015 №304 | B106: Рис отварной | D106: 180 | E106: 13.72 | F106: 4.600 | G106: 6.520 | H106: 35.510 | I106: 252 | J106: 0.052 | K106: 0.000 | L106: 0.216 | M106: 0.316 | N106: 13.750 | O106: 100.980 | P106: 15.990 | Q106: 0.011
A107: Дели 2015 №268 | B107: Котлета гов | D107: 90 | E107: 17.27 | F107: 12.075 | G107: 13.960 | H107: 10.630 | I107: 205 | J107: 0.186 | K107: 4.340 | L107: 0.000 | M107: 1.530 | N107: 61.840 | O107: 174.400 | P107: 24.670 | Q107: 1.880
B108: Хлеб белый 1 с | D108: 60 | F108: 4.560 | G108: 0.480 | H108: 29.520 | I108: 142 | J108: 0.066 | K108: 0.000 | L108: 0.000 | M108: 0.660 | N108: 12.000 | O108: 39.000 | P108: 8.400 | Q108: 0.660
A109: ДеЛи,2011-544с,№349 | B109: Чай с сахаром | D109: 200/15 | E109: 3.65 | F109: 0.530 | G109: 0.000 | H109: 9.470 | I109: 40 | J109: 0.000 | K109: 0.270 | L109: 0.000 | M109: 0.000 | N109: 13.600 | O109: 22.130 | P109: 11.730 | Q109: 0.100
B110: Хлеб ржано - пшеничный ,1с | D110: 20 | E110: 1.37 | F110: 1.000 | G110: 0.200 | H110: 9.000 | I110: 44 | J110: 0.014 | K110: 0.000 | L110: 0.000 | M110: 0.108 | N110: 2.760 | O110: 12.720 | P110: 3.000 | Q110: 0.372
A111: Итого: | E111: =SUM(E106:E110) -> 36.01 | F111: 22.765 | G111: 21.160 | H111: 94.130 | I111: 683 | J111: 0.318 | K111: 4.610 | L111: 0.216 | M111: 2.614 | N111: 103.950 | O111: 349.230 | P111: 63.790 | Q111: 3.023
A112: ГПД:
A113: Уфа 2021 № 65 | B113: Суп картофельный с бобовыми и гренками | D113: 300/25 | E113: 5.99 | F113: 9.000 | G113: 5.400 | H113: 38.900 | I113: 253 | J113: 0.240 | K113: 5.590 | L113: 0.000 | M113: 0.000 | N113: 46.410 | O113: 0.000 | P113: 52.310 | Q113: 2.770
B114: Хлеб ржаной- пшеничный , 1 с | D114: 20 | F114: 1.000
A115: Делми 2015 №349 | B115: Чай с сахаром | D115: 200/15 | E115: 3.65 | F115: 0.530 | G115: 0.000 | H115: 9.470 | I115: 44 | J115: 0.014 | K115: 0.000 | L115: 0.000 | M115: 0.108 | N115: 2.760 | O115: 12.720 | P115: 3.000 | Q115: 0.372
B116: Хлеб белый,1с | D116: 30 | E116: 1.41 | F116: 2.280 | G116: 0.240 | H116: 14.760 | I116: 71 | J116: 0.033 | M116: 0.330 | N116: 6.000 | O116: 19.500 | P116: 4.200 | Q116: 0.330
A117: Итого: | E117: =SUM(E113:E116) -> 11.05 | F117: 12.810 | G117: 5.640 | H117: 63.130 | I117: 368 | J117: 0.287 | K117: 5.590 | L117: 0.000 | M117: 0.438 | N117: 55.170 | O117: 32.220 | P117: 59.510 | Q117: 3.472
A118: 6 день 2 неделя
A119: 1-4классы
A121: Дели 2015 №338 | B121: Плоды и ягоды свежие ( яблоки) | D121: 100 | E121: 4.79 | F121: 0.400 | G121: 0.400 | H121: 7.350 | I121: 47 | J121: 0.030 | K121: 8.000 | L121: 0.000 | M121: 0.100 | N121: 16.000 | O121: 11.000 | P121: 9.000 | Q121: 0.030
A122: Дели 2015 №56 | B122: Салат овощной с яблоками | D122: 60 | F122: 3.500 | G122: 6.110 | H122: 9.900 | I122: 124 | J122: 0.010 | K122: 11.310 | L122: 0.000 | M122: 0.4 | N122: 126.880 | O122: 120.410 | P122: 41.330 | Q122: 1.900
A123: Дели 2015 №392 | B123: Пельмени отварные | D123: 180/5 | E123: 33.19 | F123: 10.340 | G123: 12.175 | H123: 20.340 | I123: 237 | J123: 0.159 | K123: 0.491 | L123: 0.180 | M123: 1.283 | N123: 79.456 | O123: 239.018 | P123: 10.570 | Q123: 0.010
A124: Дели 2015 №377 | B124: Чай с лимоном | D124: 200/15/7 | E124: 1.89 | F124: 0.084 | G124: 0.012 | H124: 15.185 | I124: 62 | J124: 0.003 | K124: 2.800 | L124: 0.000 | M124: 0.014 | N124: 3.250 | O124: 1.540 | P124: 0.840 | Q124: 0.067
B125: Хлеб ржан-пшенич,1с | D125: 20 | E125: 1.37 | F125: 1.000 | G125: 0.200 | H125: 9.000 | I125: 44 | J125: 0.014 | K125: 0.000 | L125: 0.000 | M125: 0.108 | N125: 2.760 | O125: 12.720 | P125: 3.000 | Q125: 0.372
B126: Хлеб белый,1с | D126: 30 | E126: 1.41 | F126: 2.280 | G126: 0.240 | H126: 14.760 | I126: 71 | J126: 0.033 | K126: 0.000 | L126: 0.000 | M126: 0.330 | N126: 6.000 | O126: 19.500 | P126: 4.200 | Q126: 0.330
A127: Итого: | E127: =SUM(E121:E126) -> 42.65 | F127: 17.604 | G127: 19.137 | H127: 76.535 | I127: 585 | J127: 0.239 | K127: 22.601 | L127: 0.180 | M127: 1.835 | N127: 234.346 | O127: 404.188 | P127: 68.940 | Q127: 2.709
A128: 5-11классы
A130: Дели 2015 №338 | B130: Плоды и ягоды свежие ( яблоки ) | D130: 100 | F130: 0.4 | G130: 0.4 | H130: 7.35 | I130: 47 | J130: 0.03 | K130: 8 | L130: 0 | M130: 0.1 | N130: 16 | O130: 11 | P130: 9 | Q130: 0.03
A131: Дели 2015№392 | B131: Пельмени отварные | D131: 180/5 | E131: 8.24 | F131: 10.34 | G131: 12.18 | H131: 20.34 | I131: 237.00 | J131: 0.16 | K131: 0.49 | L131: 0.18 | M131: 1.28 | N131: 79.46 | O131: 239.02 | P131: 10.57 | Q131: 0.01
B132: Хлеб белый , 1 с | D132: 30 | F132: 2.28 | G132: 0.24 | H132: 14.76 | I132: 71.00 | J132: 0.03 | K132: 0.00 | L132: 0.00 | M132: 0.33 | N132: 6.00 | O132: 19.50 | P132: 4.20 | Q132: 0.33
B133: Хлеб ржано- пшен | D133: 20 | F133: 1.00 | G133: 0.20 | H133: 9.00 | I133: 44.00 | J133: 0.01 | K133: 0.00 | L133: 0.00 | M133: 0.11 | N133: 2.76 | O133: 12.72 | P133: 3.00 | Q133: 0.37
A134: №685,2004 | B134: Чай с сахаром | D134: 200/15 | E134: 1.89 | F134: 0.530 | G134: 0.000 | H134: 9.470 | I134: 40 | J134: 0.000 | K134: 0.270 | L134: 0.000 | M134: 0.000 | N134: 13.600 | O134: 22.130 | P134: 11.730 | Q134: 0.100
A135: Итого: | E135: =SUM(E131:E134) -> 10.13 | F135: 14.550 | G135: 13.015 | H135: 60.920 | I135: 439 | J135: 0.236 | K135: 8.761 | L135: 0.180 | M135: 1.821 | N135: 117.810 | O135: 304.360 | P135: 38.500 | Q135: 0.842
